fUST/lending_fUST_20250302
["ID","MTS","AMOUNT","RATE_DAILY","PERIOD"]
[354983403,1740856250186,-500.0,0.00025473,2]
[354983405,1740856250196,-500.0,0.00025473,2]
[354983407,1740856250206,-500.0,0.00025473,2]
[354983409,1740856250217,-315.09736907,0.00025473,2]
[354983411,1740856250227,-500.0,0.00025473,2]
[354983413,1740856250239,-198.83457655,0.00025473,2]
[354983416,1740856250249,-500.0,0.00025473,2]
[354983417,1740856250261,-500.0,0.00025473,2]
[354983419,1740856250271,-166.48973665,0.00025473,2]
[354983421,1740856250281,-500.0,0.00025473,2]
[354983424,1740856250291,-500.0,0.00025473,2]
[354983426,1740856250301,-500.0,0.00025473,2]
[354983428,1740856250311,-500.0,0.00025473,2]
[354983430,1740856250320,-500.0,0.00025473,2]
[354983432,1740856250330,-500.0,0.00025473,2]
[354983434,1740856250340,-501.82626897,0.00025473,2]
[354983436,1740856250350,-151.0,0.000255,18]
[354983438,1740856250360,-552.13943683,0.00025507,2]
[354983440,1740856250370,-7521.57190836,0.0002552,2]
[354983442,1740856250380,-151.0,0.0002552,7]
[354983444,1740856250390,-166.1,0.00025532,2]
[354983446,1740856250402,-500.0,0.00025547,2]
[354983448,1740856250412,-500.0,0.00025547,2]
[354983450,1740856250421,-500.0,0.00025547,2]
[354983452,1740856250436,-500.0,0.00025547,2]
[354983454,1740856250446,-1180.47,0.00025547,2]
[354983456,1740856250456,-845.17,0.00025547,2]
[354983458,1740856250466,-500.0,0.00025547,2]
[354983462,1740856250492,-500.0,0.00025547,2]
[354983464,1740856250504,-500.0,0.00025547,2]
[354983466,1740856250516,-500.0,0.00025547,2]
[354983468,1740856250527,-500.0,0.00025547,2]
[354983470,1740856250538,-978.95,0.00025547,2]
[354983473,1740856250549,-500.0,0.00025547,2]
[354983475,1740856250560,-910.71,0.00025547,2]
[354983477,1740856250571,-1440.76,0.00025547,2]
[354983479,1740856250582,-842.47,0.00025547,2]
[354983481,1740856250592,-447.79304725,0.00025547,2]
[354983483,1740856250604,-157.91491,0.00025547,7]
[354983486,1740856250615,-151.0,0.00025547,7]
[354983488,1740856250626,-688.58,0.00025547,2]
[354983490,1740856250637,-500.0,0.00025547,2]
[354983492,1740856250649,-308.812328,0.00025547,7]
[354983494,1740856250659,-308.812328,0.00025547,7]
[354983496,1740856250670,-470.79069786,0.00025547,2]
[354983499,1740856250680,-151.616542,0.00025547,7]
[354983501,1740856250690,-602.24,0.00025547,2]
[354983503,1740856250701,-500.0,0.00025547,2]
[354983505,1740856250711,-153.091844,0.00025547,7]
[354983507,1740856250722,-551.6,0.00025547,2]
[354983509,1740856250733,-153.091844,0.00025547,7]
[354983511,1740856250743,-2518.52,0.00025547,2]
[354983513,1740856250754,-500.0,0.00025547,2]
[354983515,1740856250764,-1649.68,0.00025547,2]
[354983518,1740856250774,-1003.92,0.00025547,2]
[354983520,1740856250784,-169.041255,0.00025547,7]
[354983522,1740856250794,-169.041255,0.00025547,7]
[354983524,1740856250804,-501.82,0.00025547,2]
[354983526,1740856250815,-500.0,0.00025547,2]
[354983528,1740856250825,-500.0,0.00025547,2]
[354983530,1740856250836,-1003.16,0.00025547,2]
[354983532,1740856250846,-500.0,0.00025547,2]
[354983534,1740856250855,-2581.08,0.00025547,2]
[354983536,1740856250867,-500.0,0.00025547,2]
[354983539,1740856250877,-500.0,0.00025547,2]
[354983541,1740856250888,-500.0,0.00025547,2]
[354983543,1740856250899,-506.58290208,0.00025547,2]
[354983545,1740856250909,-914.51,0.00025547,2]
[354983547,1740856250920,-853.07,0.00025547,2]
[354983549,1740856250930,-500.0,0.00025547,2]
[354983551,1740856250940,-500.0,0.00025547,2]
[354983553,1740856250950,-770.84,0.00025547,2]
[354983556,1740856250960,-1457.14,0.00025547,2]
[354983558,1740856250970,-1864.39,0.00025547,2]
[354983560,1740856250980,-329.05,0.00025547,2]
[354983562,1740856250991,-500.0,0.00025547,2]
[354983564,1740856251001,-4735.12,0.00025547,2]
[354983566,1740856251011,-500.0,0.00025547,2]
[354983568,1740856251022,-151.0,0.000256,18]
[354983570,1740856251033,-1048.17028371,0.000256,4]
[354983571,1740856251043,-151.0,0.0002562,7]
[354983572,1740856251054,-151.0,0.0002562,7]
[354983573,1740856251064,-151.0,0.0002562,7]
[354983574,1740856251074,-1483.801915,0.0002562,7]
[354983575,1740856251085,-500.0,0.0002562,2]
[354983576,1740856251102,-500.0,0.0002562,2]
[354983577,1740856251112,-500.0,0.0002562,2]
[354983578,1740856251123,-500.0,0.0002562,2]
[354983579,1740856251133,-500.0,0.0002562,2]
[354983580,1740856251144,-500.0,0.0002562,2]
[354983581,1740856251154,-668.16,0.0002562,2]
[354983582,1740856251165,-500.0,0.0002562,2]
[354983583,1740856251176,-886.54,0.0002562,2]
[354983584,1740856251187,-500.0,0.0002562,2]
[354983585,1740856251197,-500.0,0.0002562,2]
[354983586,1740856251208,-1176.6,0.0002562,2]
[354983587,1740856251219,-500.0,0.0002562,2]
[354983588,1740856251230,-500.0,0.0002562,2]
[354983589,1740856251240,-500.0,0.0002562,2]
[354983590,1740856251251,-753.23,0.0002562,2]
[354983591,1740856251262,-500.0,0.0002562,2]
[354983592,1740856251274,-500.0,0.0002562,2]
[354983593,1740856251284,-500.0,0.0002562,2]
[354983594,1740856251295,-500.0,0.0002562,2]
[354983595,1740856251305,-596.69452969,0.0002562,2]
[354983596,1740856251316,-782.36,0.0002562,2]
[354983597,1740856251327,-1076.33,0.0002562,2]
[354983598,1740856251338,-500.0,0.0002562,2]
[354983599,1740856251348,-504.25358338,0.0002562,2]
[354983600,1740856251359,-311.49889314,0.0002562,2]
[354983601,1740856251369,-500.0,0.0002562,2]
[354983602,1740856251379,-1499.68,0.0002562,2]
[354983603,1740856251390,-500.0,0.0002562,2]
[354983604,1740856251400,-500.0,0.0002562,2]
[354983605,1740856251411,-500.0,0.0002562,2]
[354983606,1740856251421,-500.0,0.0002562,2]
[354983607,1740856251436,-1248.36,0.0002562,2]
[354983608,1740856251446,-500.0,0.0002562,2]
[354983609,1740856251457,-500.0,0.0002562,2]
[354983610,1740856251468,-500.0,0.0002562,2]
[354983616,1740856251598,-500.0,0.0002562,2]
[354983618,1740856251613,-218.42131119,0.0002562,2]
[354983684,1740856252533,-209.33633756,0.0002562,2]
[354983727,1740856252943,-500.0,0.00024898,2]
[354983729,1740856252953,-500.0,0.00024899,2]
[354983732,1740856252964,-500.0,0.00024899,2]
[354983734,1740856252975,-500.0,0.00025172,2]
[354983736,1740856252985,-500.0,0.00025173,2]
[354983738,1740856252994,-500.0,0.00025173,2]
[354983740,1740856253004,-500.0,0.00025447,2]
[354983742,1740856253015,-72.24235125,0.0002562,2]
[354983744,1740856253024,-500.0,0.0002562,2]
[354983746,1740856253034,-500.0,0.0002562,2]
[354983748,1740856253044,-1216.19,0.0002562,2]
[354983750,1740856253053,-500.0,0.0002562,2]
[354983752,1740856253063,-509.12,0.0002562,2]
[354983754,1740856253073,-599.49259677,0.0002562,2]
[354983756,1740856253082,-574.63,0.0002562,2]
[354983758,1740856253091,-500.0,0.0002562,2]
[354983760,1740856253101,-586.96,0.0002562,2]
[354983762,1740856253111,-500.0,0.0002562,2]
[354983764,1740856253120,-500.0,0.0002562,2]
[354983766,1740856253129,-1000.0,0.0002562,2]
[354983768,1740856253139,-500.0,0.0002562,2]
[354983770,1740856253149,-563.46,0.0002562,2]
[354983772,1740856253159,-500.0,0.0002562,2]
[354983774,1740856253168,-500.0,0.0002562,2]
[354983776,1740856253178,-500.0,0.0002562,2]
[354983778,1740856253188,-500.0,0.0002562,2]
[354983780,1740856253197,-500.0,0.0002562,2]
[354983782,1740856253207,-889.45,0.0002562,2]
[354983784,1740856253216,-500.0,0.0002562,2]
[354983786,1740856253225,-500.0,0.0002562,2]
[354983788,1740856253235,-688.17,0.0002562,2]
[354983790,1740856253245,-500.0,0.0002562,2]
[354983792,1740856253255,-224.50637899,0.0002562,2]
[354983794,1740856253264,-544.63,0.0002562,2]
[354983796,1740856253273,-651.62,0.0002562,2]
[354983798,1740856253282,-500.0,0.0002562,2]
[354983800,1740856253291,-583.04,0.0002562,2]
[354983801,1740856253300,-500.0,0.0002562,2]
[354983803,1740856253310,-505.05,0.0002562,2]
[354983805,1740856253319,-500.0,0.0002562,2]
[354983808,1740856253329,-500.0,0.0002562,2]
[354983809,1740856253338,-500.0,0.0002562,2]
[354983812,1740856253348,-537.3,0.0002562,2]
[354983813,1740856253359,-500.0,0.0002562,2]
[354983815,1740856253368,-959.57,0.0002562,2]
[354983817,1740856253377,-500.0,0.0002562,2]
[354983819,1740856253387,-500.0,0.0002562,2]
[354983821,1740856253398,-500.0,0.0002562,2]
[354983823,1740856253408,-500.0,0.0002562,2]
[354983825,1740856253418,-500.0,0.0002562,2]
[354983827,1740856253430,-500.0,0.0002562,2]
[354983829,1740856253440,-500.62079031,0.0002562,2]
[354983832,1740856253451,-500.0,0.0002562,2]
[354983833,1740856253460,-500.0,0.0002562,2]
[354983835,1740856253471,-500.0,0.0002562,2]
[354983838,1740856253483,-559.71,0.0002562,2]
[354983840,1740856253493,-500.0,0.0002562,2]
[354983842,1740856253503,-500.0,0.0002562,2]
[354983843,1740856253513,-1023.32,0.0002562,2]
[354983845,1740856253523,-500.0,0.0002562,2]
[354983847,1740856253533,-2681.2438,0.0002562,5]
[354983850,1740856253543,-950.84,0.0002562,2]
[354983852,1740856253552,-2681.2438,0.0002562,5]
[354983854,1740856253562,-500.0,0.0002562,2]
[354983856,1740856253574,-500.0,0.0002562,2]
[354983858,1740856253583,-500.0,0.0002562,2]
[354983860,1740856253593,-1185.84,0.0002562,2]
[354983861,1740856253603,-500.0,0.0002562,2]
[354983864,1740856253613,-500.0,0.0002562,2]
[354983866,1740856253622,-151.0,0.0002562,7]
[354983868,1740856253632,-500.0,0.0002562,2]
[354983870,1740856253642,-151.0,0.0002562,7]
[354983872,1740856253651,-151.0,0.0002562,7]
[354983874,1740856253661,-500.0,0.0002562,2]
[354983876,1740856253671,-596.2,0.0002562,2]
[354983878,1740856253681,-151.0,0.0002562,7]
[354983880,1740856253690,-367.321231,0.0002562,7]
[354983882,1740856253700,-367.321231,0.0002562,7]
[354983884,1740856253710,-1258.740613,0.0002562,7]
[354983886,1740856253720,-1258.740613,0.0002562,7]
[354983888,1740856253730,-151.0,0.0002562,7]
[354983890,1740856253739,-151.0,0.0002562,7]
[354983892,1740856253749,-189.746132,0.0002562,7]
[354983894,1740856253759,-189.746132,0.0002562,7]
[354983896,1740856253768,-186.819321,0.0002562,7]
[354983898,1740856253777,-186.819321,0.0002562,7]
[354983900,1740856253787,-2196.7908,0.0002562,7]
[354983902,1740856253796,-2196.7908,0.0002562,7]
[354983904,1740856253806,-260.220751,0.0002562,7]
[354983906,1740856253816,-1164.244238,0.0002562,7]
[354983908,1740856253826,-1164.244238,0.0002562,7]
[354983910,1740856253835,-151.0,0.00025621,7]
[354983912,1740856253844,-151.0,0.00025621,7]
[354983914,1740856253854,-500.0,0.00025621,2]
[354983916,1740856253863,-504.17697324,0.00025621,2]
[354983918,1740856253873,-500.0,0.00025621,2]
[354983920,1740856253883,-500.0,0.00025621,2]
[354983922,1740856253893,-500.0,0.00025621,2]
[354983924,1740856253903,-500.0,0.00025621,2]
[354983926,1740856253912,-151.0,0.00025621,7]
[354983927,1740856253921,-608.73,0.00025621,2]
[354983929,1740856253931,-500.0,0.00025621,2]
[354983931,1740856253940,-566.97,0.00025621,2]
[354983933,1740856253950,-500.0,0.00025621,2]
[354983935,1740856253959,-151.0,0.00025621,7]
[354983937,1740856253969,-500.0,0.00025621,2]
[354983939,1740856253979,-598.086905,0.00025621,7]
[354983941,1740856253988,-598.086905,0.00025621,7]
[354983944,1740856253998,-497.553106,0.00025621,7]
[354983945,1740856254007,-500.0,0.00025621,2]
[354983948,1740856254017,-497.553106,0.00025621,7]
[354983949,1740856254027,-500.0,0.00025621,2]
[354983951,1740856254036,-500.0,0.00025621,2]
[354983954,1740856254046,-500.0,0.00025621,2]
[354983956,1740856254056,-327.615447,0.00025621,7]
[354983958,1740856254066,-327.615447,0.00025621,7]
[354983960,1740856254075,-325.023171,0.00025621,7]
[354983962,1740856254084,-500.0,0.00025621,2]
[354983964,1740856254094,-500.0,0.00025621,2]
[354983966,1740856254103,-325.023171,0.00025621,7]
[354983968,1740856254113,-1291.98,0.00025621,2]
[354983970,1740856254123,-1544.35,0.00025621,2]
[354983972,1740856254132,-584.98,0.00025621,2]
[354983974,1740856254142,-385.573643,0.00025621,7]
[354983976,1740856254151,-385.573643,0.00025621,7]
[354983978,1740856254161,-331.636747,0.00025621,7]
[354983980,1740856254171,-331.636747,0.00025621,7]
[354983982,1740856254181,-359.868343,0.00025621,7]
[354983984,1740856254190,-359.868343,0.00025621,7]
[354983986,1740856254200,-669.5,0.00025621,2]
[354983988,1740856254209,-546.35,0.00025621,2]
[354983990,1740856254219,-1349.07,0.00025621,2]
[354983992,1740856254228,-151.0,0.00025621,7]
[354983994,1740856254239,-151.0,0.00025621,7]
[354983996,1740856254249,-500.0,0.00025621,2]
[354983998,1740856254258,-500.0,0.00025621,2]
[354984000,1740856254268,-500.0,0.00025621,2]
[354984002,1740856254277,-2563.8,0.00025621,2]
[354984004,1740856254286,-1435.73,0.00025621,2]
[354984006,1740856254296,-500.0,0.00025621,2]
[354984008,1740856254305,-19624.61182001,0.00025621,7]
[354984010,1740856254315,-552.13943683,0.00025644,2]
[354984012,1740856254324,-500.0,0.00025673,2]
[354984014,1740856254334,-3011.44662589,0.000257,2]
[354984016,1740856254344,-151.0,0.000257,15]
[354984018,1740856254354,-4379.09,0.0002572,2]
[354984020,1740856254364,-925.77,0.0002572,2]
[354984022,1740856254373,-616.35,0.0002572,2]
[354984024,1740856254384,-1338.29,0.0002572,2]
[354984026,1740856254394,-500.0,0.0002572,2]
[354984028,1740856254404,-500.0,0.0002572,2]
[354984030,1740856254414,-15430.04,0.0002572,2]
[354984032,1740856254424,-9682.22,0.0002572,2]
[354984034,1740856254437,-7345.59,0.0002572,2]
[354984036,1740856254448,-500.0,0.0002572,2]
[354984038,1740856254458,-3289.57,0.0002572,2]
[354984040,1740856254468,-4569.17,0.0002572,2]
[354984042,1740856254479,-1040.62,0.0002572,5]
[354984044,1740856254488,-1863.2,0.0002572,2]
[354984046,1740856254497,-1495.27,0.0002572,2]
[354984048,1740856254508,-6804.97,0.0002572,2]
[354984050,1740856254517,-500.0,0.0002572,2]
[354984052,1740856254527,-1389.43,0.0002572,2]
[354984054,1740856254536,-500.0,0.0002572,2]
[354984056,1740856254546,-5656.76,0.0002572,2]
[354984057,1740856254555,-964.63,0.0002572,2]
[354984059,1740856254565,-3103.69,0.0002572,2]
[354984062,1740856254575,-986.66,0.0002572,2]
[354984064,1740856254585,-10046.41,0.0002572,2]
[354984066,1740856254594,-503.34,0.0002572,2]
[354984068,1740856254606,-3429.04,0.0002572,2]
[354984070,1740856254615,-500.0,0.0002572,2]
[354984072,1740856254625,-1406.95,0.0002572,2]
[354984074,1740856254635,-500.0,0.0002572,2]
[354984076,1740856254644,-569.6,0.0002572,2]
[354984078,1740856254654,-39728.61980454,0.00025721,6]
[354984079,1740856254664,-84160.46513393,0.00025721,6]
[354984110,1740856255005,-18001.71345083,0.00025721,6]
[354984112,1740856255015,-185.120276,0.00025721,7]
[354984114,1740856255024,-151.0,0.00025721,7]
[354984117,1740856255034,-151.0,0.00025721,7]
[354984119,1740856255044,-1483.801915,0.00025721,7]
[354984121,1740856255055,-500.0,0.00025721,2]
[354984123,1740856255064,-255.2653524,0.00025721,2]
[354984125,1740856255074,-500.0,0.00025721,2]
[354984127,1740856255085,-500.0,0.00025721,2]
[354984129,1740856255095,-500.0,0.00025721,2]
[354984131,1740856255105,-960.94,0.00025721,2]
[354984133,1740856255115,-500.0,0.00025721,2]
[354984135,1740856255125,-500.0,0.00025721,2]
[354984138,1740856255135,-588.7,0.00025721,2]
[354984140,1740856255145,-500.0,0.00025721,2]
[354984142,1740856255155,-800.56,0.00025721,2]
[354984144,1740856255165,-151.0,0.00025721,7]
[354984146,1740856255175,-785.35,0.00025721,2]
[354984148,1740856255185,-500.0,0.00025721,2]
[354984150,1740856255195,-500.0,0.00025721,2]
[354984152,1740856255205,-500.0,0.00025721,2]
[354984154,1740856255214,-501.87,0.00025721,2]
[354984156,1740856255225,-500.0,0.00025721,2]
[354984159,1740856255235,-1483.81,0.00025721,2]
[354984161,1740856255245,-500.0,0.00025721,2]
[354984163,1740856255255,-500.0,0.00025721,2]
[354984165,1740856255265,-500.0,0.00025721,2]
[354984167,1740856255275,-1607.46,0.00025721,2]
[354984169,1740856255285,-500.0,0.00025721,2]
[354984171,1740856255295,-759.6,0.00025721,2]
[354984173,1740856255305,-500.0,0.00025721,2]
[354984175,1740856255316,-500.0,0.00025721,2]
[354984177,1740856255326,-500.0,0.00025721,2]
[354984179,1740856255336,-500.0,0.00025721,2]
[354984181,1740856255345,-1773.71,0.00025721,2]
[354984183,1740856255355,-500.0,0.00025721,2]
[354984185,1740856255366,-500.0,0.00025721,2]
[354984188,1740856255376,-500.0,0.00025721,2]
[354984190,1740856255386,-500.0,0.00025721,2]
[354984192,1740856255396,-546.04443159,0.00025721,2]
[354984194,1740856255406,-688.89,0.00025721,2]
[354984196,1740856255416,-1081.9,0.00025721,2]
[354984198,1740856255429,-500.0,0.00025721,2]
[354984200,1740856255439,-347.144693,0.00025721,7]
[354984202,1740856255450,-500.0,0.00025721,2]
[354984204,1740856255460,-347.144693,0.00025721,7]
[354984206,1740856255471,-500.0,0.00025721,2]
[354984208,1740856255480,-594.32,0.00025721,2]
[354984211,1740856255490,-151.0,0.00025721,7]
[354984213,1740856255502,-645.39,0.00025721,2]
[354984215,1740856255513,-500.0,0.00025721,2]
[354984217,1740856255522,-500.0,0.00025721,2]
[354984219,1740856255532,-500.0,0.00025721,2]
[354984221,1740856255542,-500.0,0.00025721,2]
[354984223,1740856255552,-308.812328,0.00025721,7]
[354984226,1740856255562,-500.0,0.00025721,2]
[354984228,1740856255571,-308.812328,0.00025721,7]
[354984230,1740856255582,-1181.76,0.00025721,2]
[354984232,1740856255593,-500.0,0.00025721,2]
[354984234,1740856255603,-564.86,0.00025721,2]
[354984236,1740856255614,-500.0,0.00025721,2]
[354984238,1740856255623,-500.0,0.00025721,2]
[354984240,1740856255633,-500.0,0.00025721,2]
[354984242,1740856255643,-1072.11,0.00025721,2]
[354984245,1740856255654,-153.091844,0.00025721,7]
[354984247,1740856255663,-153.091844,0.00025721,7]
[354984249,1740856255673,-792.8,0.00025721,2]
[354984251,1740856255683,-500.0,0.00025721,2]
[354984253,1740856255693,-500.0,0.00025721,2]
[354984255,1740856255703,-500.0,0.00025721,2]
[354984257,1740856255713,-350.0,0.00025721,3]
[354984259,1740856255723,-350.0,0.00025721,3]
[354984261,1740856255733,-350.0,0.00025721,3]
[354984263,1740856255743,-350.0,0.00025721,3]
[354984266,1740856255752,-350.0,0.00025721,3]
[354984268,1740856255762,-1890.72,0.00025721,2]
[354984270,1740856255772,-350.0,0.00025721,3]
[354984272,1740856255782,-336.1280879,0.00025721,3]
[354984274,1740856255792,-350.0,0.00025721,3]
[354984276,1740856255801,-350.0,0.00025721,3]
[354984278,1740856255811,-350.0,0.00025721,3]
[354984280,1740856255821,-350.0,0.00025721,3]
[354984282,1740856255831,-350.0,0.00025721,3]
[354984284,1740856255841,-350.0,0.00025721,3]
[354984286,1740856255851,-619.74,0.00025721,2]
[354984288,1740856255860,-350.0,0.00025721,3]
[354984290,1740856255871,-350.0,0.00025721,3]
[354984293,1740856255882,-350.0,0.00025721,3]
[354984295,1740856255891,-350.0,0.00025721,3]
[354984297,1740856255902,-350.0,0.00025721,3]
[354984299,1740856255912,-500.0,0.00025721,2]
[354984301,1740856255922,-350.0,0.00025721,3]
[354984303,1740856255932,-350.0,0.00025721,3]
[354984305,1740856255943,-350.0,0.00025721,3]
[354984307,1740856255952,-350.0,0.00025721,3]
[354984309,1740856255962,-350.0,0.00025721,3]
[354984312,1740856255972,-500.0,0.00025721,2]
[354984314,1740856255982,-1316.52,0.00025721,2]
[354984316,1740856255992,-500.0,0.00025721,2]
[354984318,1740856256003,-702.24,0.00025721,2]
[354984320,1740856256012,-500.0,0.00025721,2]
[354984322,1740856256023,-500.0,0.00025721,2]
[354984324,1740856256033,-169.041255,0.00025721,7]
[354984326,1740856256043,-500.0,0.00025721,2]
[354984328,1740856256052,-1276.83,0.00025721,2]
[354984330,1740856256062,-500.0,0.00025721,2]
[354984333,1740856256073,-169.041255,0.00025721,7]
[354984335,1740856256083,-925.95,0.00025721,2]
[354984337,1740856256093,-500.0,0.00025721,2]
[354984339,1740856256103,-500.0,0.00025721,2]
[354984341,1740856256113,-500.0,0.00025721,2]
[354984343,1740856256123,-500.0,0.00025721,2]
[354984345,1740856256133,-375.71,0.00025721,2]
[354984347,1740856256143,-3493.59,0.00025721,2]
[354984349,1740856256154,-500.0,0.00025721,2]
[354984351,1740856256164,-2069.48,0.00025721,2]
[354984353,1740856256175,-942.22,0.00025721,2]
[354984356,1740856256185,-2051.77,0.00025721,2]
[354984358,1740856256195,-500.0,0.00025721,2]
[354984360,1740856256206,-500.0,0.00025721,2]
[354984362,1740856256217,-500.0,0.00025721,2]
[354984364,1740856256227,-160.0,0.00025721,3]
[354984366,1740856256238,-582.73,0.00025721,2]
[354984368,1740856256247,-500.0,0.00025721,2]
[354984370,1740856256259,-502.5,0.00025721,2]
[354984372,1740856256269,-1986.76,0.00025721,2]
[354984374,1740856256279,-500.0,0.00025721,2]
[354984377,1740856256290,-311.11816308,0.00025721,2]
[354984379,1740856256302,-1432.7,0.00025721,2]
[354984381,1740856256312,-500.0,0.00025721,2]
[354984383,1740856256323,-500.0,0.00025721,2]
[354984385,1740856256332,-157549.79933488,0.00025721,2]
[354984520,1740856257620,-500.0,0.00024899,2]
[354984522,1740856257630,-500.0,0.00024899,2]
[354984524,1740856257640,-500.0,0.00024899,2]
[354984526,1740856257651,-500.0,0.00024899,2]
[354984528,1740856257661,-500.0,0.00024899,2]
[354984530,1740856257670,-500.0,0.00024899,2]
[354984532,1740856257680,-500.0,0.00024899,2]
[354984534,1740856257690,-500.0,0.00024999,2]
[354984536,1740856257700,-500.0,0.00025173,2]
[354984538,1740856257710,-500.0,0.00025173,2]
[354984540,1740856257720,-500.0,0.00025173,2]
[354984542,1740856257730,-282.95,0.00025336,3]
[354984544,1740856257739,-500.0,0.00025446,2]
[354984546,1740856257749,-500.0,0.00025447,2]
[354984548,1740856257759,-500.0,0.0002572,2]
[354984550,1740856257769,-27932.29066512,0.00025721,2]
[354984552,1740856257778,-500.0,0.00025721,2]
[354984554,1740856257788,-623.35,0.00025721,2]
[354984556,1740856257797,-500.0,0.00025721,2]
[354984558,1740856257807,-878.29,0.00025721,2]
[354984560,1740856257818,-1836.81,0.00025721,2]
[354984562,1740856257828,-517.22,0.00025721,2]
[354984564,1740856257838,-2028.54,0.00025721,2]
[354984566,1740856257848,-755.28,0.00025721,2]
[354984568,1740856257858,-3380.82,0.00025721,2]
[354984570,1740856257868,-500.0,0.00025721,2]
[354984572,1740856257879,-1111.42,0.00025721,2]
[354984574,1740856257888,-1107.31,0.00025721,2]
[354984576,1740856257898,-8679.19,0.00025721,2]
[354984578,1740856257908,-502.06,0.00025721,2]
[354984580,1740856257918,-500.0,0.00025721,2]
[354984582,1740856257928,-1931.12,0.00025721,2]
[354984584,1740856257939,-500.0,0.00025721,2]
[354984586,1740856257949,-1521.15,0.00025721,2]
[354984588,1740856257959,-2396.33,0.00025721,2]
[354984590,1740856257969,-500.0,0.00025721,2]
[354984592,1740856257979,-761.77,0.00025721,2]
[354984594,1740856257988,-3644.05,0.00025721,2]
[354984596,1740856257998,-500.0,0.00025721,2]
[354984598,1740856258008,-500.0,0.00025721,2]
[354984600,1740856258018,-596.95,0.00025721,2]
[354984602,1740856258028,-500.0,0.00025721,2]
[354984604,1740856258038,-19624.61182001,0.00025721,3]
[354984606,1740856258048,-1115.74,0.00025721,2]
[354984608,1740856258058,-509.14,0.00025721,2]
[354984610,1740856258068,-1414.0,0.00025721,2]
[354984612,1740856258078,-500.0,0.00025721,2]
[354984614,1740856258087,-500.0,0.00025721,2]
[354984616,1740856258097,-1264.97,0.00025721,2]
[354984618,1740856258107,-500.0,0.00025721,2]
[354984620,1740856258117,-1038.26,0.00025721,2]
[354984622,1740856258128,-500.0,0.00025721,2]
[354984624,1740856258137,-500.0,0.00025721,2]
[354984626,1740856258148,-646.95,0.00025721,2]
[354984628,1740856258158,-34072.75,0.00025721,2]
[354984630,1740856258168,-525.3,0.00025721,2]
[354984632,1740856258178,-1539.21,0.00025721,2]
[354984634,1740856258188,-500.0,0.00025721,2]
[354984636,1740856258198,-740.17,0.00025721,2]
[354984638,1740856258208,-500.0,0.00025721,2]
[354984640,1740856258218,-2313.21,0.00025721,2]
[354984642,1740856258228,-500.0,0.00025721,2]
[354984644,1740856258238,-1003.17,0.00025721,2]
[354984646,1740856258248,-500.0,0.00025721,2]
[354984648,1740856258258,-719.94,0.00025721,2]
[354984650,1740856258268,-500.0,0.00025721,2]
[354984652,1740856258277,-665.91,0.00025721,2]
[354984654,1740856258287,-500.0,0.00025721,2]